Cogmind - Beta 14 @@@ ROGUE MODE // 2025.03.08 @ 02:53:24 Player: w0rldd3str0y3r Result: Destroyed by X-87 Electro with Compact HERF Cannon Performance ------------- Evolutions (8) 4000 Regions Visited (17) 3400 Robots Destroyed (189) 945 Value Destroyed (6773) 6773 Prototype IDs (32) 640 Alien Tech Used (1) 200 Bonus (3163) 3163 TOTAL SCORE: 19121 Bonus ------- High Alert Combat Kills 1276 Follower Combat Kills 1129 Entered DSFs 500 Met Data Miner 300 Friendly Fire -42 Cogmind --------- Core Integrity 0/1450 Matter 300/300 Energy 100/100 System Corruption 0% Temperature Cool (0) Movement Core (50) Location -2/Research Parts ------- > --- POWER (2) -------- (None) > --- PROPULSION (7) --- (None) > --- UTILITY (12) ----- Advanced Visual Processing Unit Advanced Signal Interpreter Hacking Suite Hacking Suite Hacking Suite System Guard > --- WEAPON (2) ------- (None) > --- INVENTORY (5) ---- Compact Particle Reactor Advanced Signal Interpreter Advanced Signal Interpreter Long-range Proton Cannon Kinetic Spear Peak State ------------ > --- POWER ------------ Backup Power III Light Antimatter Reactor > --- PROPULSION ------- Nuclear Pulse Thruster Nuclear Pulse Thruster Experimental Cesium-ion Thruster Nuclear Pulse Array Field Propulsion Array > --- UTILITY ---------- Medium Storage Unit Enhanced Optical Array Advanced Sensor Array Advanced Signal Interpreter Improved Force Booster Advanced Reaction Control System Hacking Suite Hacking Suite Hacking Suite Hacking Suite Hacking Suite System Guard > --- WEAPON ----------- Kinetic Spear Kinetic Spear > --- INVENTORY -------- Light Antimatter Reactor Micro Antimatter Reactor Advanced Power Amplifier Large Storage Unit Advanced Signal Interpreter Advanced Signal Interpreter Advanced Force Field Fusion Bomb Launcher Power Maul [Rating: 122] Favorites ----------- Power Micro Nuclear Core Engine Backup Power III Power Core Micro Nuclear Core Reactor Light Antimatter Reactor Propulsion Gravmag System Treads Medium Treads Leg Aluminum Leg Wheel Compact Wheel Hover Unit Gravmag System Flight Unit Experimental Cesium-ion Thruster Utility Hacking Suite Device Advanced Sensor Array Storage Medium Storage Unit Processor Advanced Melee Analysis Suite Hackware Hacking Suite Protection Powered Armor Weapon Power Sword Energy Gun Particle Gun Energy Cannon HERF Cannon Ballistic Gun Light Assault Rifle Ballistic Cannon Light Cannon Launcher Improved Proton Missile Launcher Special Weapon Plasma Cutter Impact Weapon Great Maul Slashing Weapon Power Sword Piercing Weapon Kinetic Spear Special Melee Weapon Advanced Datajack Build | -11 -10 -9 -9 -8 -7 -6 -6 -6 -6 -5 -5 -5 -5 -5 -4 -3 -2 ------- Run | Yrd Mat Mat Min Mat Fac Fac Low Low Dat Pro Fac Was Fac DSF Fac Res Res Slots Evolved 16 | . . 2 . 2 2 2 . . . . 2 . . . 2 2 2 Power 1 | . . . . . . . . . . . . . . . 1 . . Propulsion 5 | . . 1 . 1 . . . . . . 1 . . . . 1 1 Utility 10 | . . 1 . 1 2 2 . . . . 1 . . . 1 1 1 Weapon . | . . . . . . . . . . . . . . . . . . Parts Attached 297 | 7 10 23 . 20 34 39 7 7 . 11 60 1 9 11 21 9 28 Power 27 | 1 1 4 . 1 3 5 1 . . . 3 . 1 1 2 . 4 Engine 9 | 1 1 4 . . . . . . . . 2 . . . 1 . . Core 13 | . . . . 1 3 5 1 . . . 1 . 1 1 . . . Reactor 5 | . . . . . . . . . . . . . . . 1 . 4 Propulsion 77 | 2 4 5 . 8 14 11 . 3 . 5 11 1 1 2 2 1 7 Treads 5 | . 1 . . . 2 . . . . . 1 . 1 . . . . Leg 4 | 2 1 . . . . . . . . . . . . . . . 1 Wheel 4 | . 2 . . 1 . . . 1 . . . . . . . . . Hover 47 | . . 5 . 5 12 11 . 2 . . 9 . . . . . 3 Flight 17 | . . . . 2 . . . . . 5 1 1 . 2 2 1 3 Utility 93 | 2 1 5 . 1 9 11 1 2 . 1 25 . 4 8 10 3 10 Device 35 | 1 . 1 . . 3 . . . . . 11 . 3 5 6 3 2 Storage 12 | 1 1 1 . . . 2 . . . . 4 . . . 3 . . Processor 22 | . . 1 . . 2 4 . 1 . 1 7 . 1 . 1 . 4 Hackware 13 | . . 1 . 1 1 2 . . . . 3 . . 3 . . 2 Protection 11 | . . 1 . . 3 3 1 1 . . . . . . . . 2 Artifact . | . . . . . . . . . . . . . . . . . . Weapon 100 | 2 4 9 . 10 8 12 5 2 . 5 21 . 3 . 7 5 7 Energy Gun 4 | . 1 . . 1 . . . . . . 2 . . . . . . Energy Cannon 8 | . . 1 . . . . . . . 1 5 . . . . . 1 Ballistic Gun 10 | 2 2 2 . 4 . . . . . . . . . . . . . Ballistic Cannon 3 | . 1 2 . . . . . . . . . . . . . . . Launcher 21 | . . 2 . . 1 4 1 1 . 2 6 . . . 2 . 2 Special Weapon 2 | . . . . . 1 . . . . . . . 1 . . . . Impact Weapon 4 | . . 1 . . . . 1 . . . . . 1 . 1 . . Slashing Weapon 39 | . . . . 5 6 8 3 1 . 2 8 . 1 . 3 2 . Piercing Weapon 7 | . . . . . . . . . . . . . . . . 3 4 Special Melee Weapon 2 | . . 1 . . . . . . . . . . . . 1 . . Unidentified Prototypes 8 | . . . . 3 . 1 1 . . . . . . . . 1 2 Corrupted Parts 4 | . . . . . . . . . . 2 2 . . . . . . System Corruption 24 | . . . . . . . . . . 12 12 . . . . . . Parts Lost 87 | . 4 4 . 2 5 9 . 5 . 8 17 . . 3 4 . 26 Power 11 | . 1 1 . . . 1 . 1 . . 2 . . . 1 . 4 Propulsion 39 | . 2 . . 2 2 6 . 2 . 5 8 . . . 1 . 11 Utility 26 | . . 1 . . 2 2 . 2 . 1 5 . . 2 1 . 10 Weapon 11 | . 1 2 . . 1 . . . . 2 2 . . 1 1 . 1 Highest Loss Streak 12 | . 3 2 . 1 3 3 . 3 . 6 6 . . 3 2 . 12 To Critical Strikes . | . . . . . . . . . . . . . . . . . . Average Slot Usage (%) 88 | . 97 89 88 97 93 92 92 90 93 86 77 53 72 80 89 89 74 Engine 2 | . 12 9 11 3 . . . . . . 1 3 . . 5 4 1 Core 3 | . . . . 5 6 5 5 2 . . 1 . 4 5 4 . . Treads 1 | . 2 4 . . 5 . . . . . . . . . . . . Leg 1 | . 18 . . . . . . . . . . . . . . . 1 Wheel 1 | . 6 4 . 2 . . . 2 6 1 . . . . . . . Hover 15 | . . 19 33 32 24 24 20 19 20 3 17 3 . . . . 4 Flight 4 | . . . . . . . . . . 16 1 5 11 17 21 19 8 Device 6 | . 14 3 . . 5 . . . . . 9 5 15 18 14 13 7 Storage 6 | . 14 11 11 9 7 6 6 6 6 6 5 . . . 3 4 3 Processor 11 | . . 4 11 9 7 14 13 18 20 23 13 17 21 17 12 14 16 Hackware 18 | . . 11 11 17 23 25 26 20 20 20 13 5 5 9 21 19 18 Protection 1 | . . 1 . . 1 4 5 5 6 1 . . . . . . . Energy Gun 1 | . 4 4 . 3 . . . . . . 1 3 . 3 . . . Ballistic Gun 2 | . 20 2 . 7 . . . . . . . . . . . . . Slashing Weapon 5 | . . . . 5 7 7 10 5 6 4 4 5 5 5 4 8 . Peak Build Rating 122 | 7 9 15 14 30 47 66 68 67 60 59 96 60 78 90 94 112 122 Average Rating 54 | 4 7 12 14 25 43 58 66 61 60 48 69 43 69 76 88 102 94 On Entrance 47 | . 7 9 14 14 27 47 58 66 60 60 51 35 60 78 86 79 105 Naked Turns . | . . . . . . . . . . . . . . . . . . Heaviest Build 56 | 13 20 22 16 21 26 46 47 47 31 35 56 8 16 23 34 39 41 Greatest Support 52 | 20 20 18 18 26 36 42 42 44 10 31 52 21 21 34 34 39 45 Greatest Overweight (x) 12 | . 1 1 . 1 1 1 1 3 3 7 12 1 . . 1 . 4 Average Overweight (x) . | . . . . . . . . 1 3 1 . . . . . . . Largest Inventory Capacity 15 | 8 10 10 10 10 10 15 15 15 15 15 15 5 5 5 15 10 10 Average Capacity 10 | 6 9 10 10 10 10 11 15 15 15 15 12 5 5 5 8 10 9 Most Carried 15 | 6 10 10 10 10 10 15 15 14 14 15 15 5 5 5 10 10 10 Average Carried 9 | 3 8 9 10 9 9 10 13 12 14 12 11 5 4 4 7 6 9 Final Capacity 15 | 8 10 10 10 10 10 15 15 15 15 15 5 5 5 5 10 10 5 Final Carried 15 | 6 10 10 10 10 8 15 14 14 14 14 5 5 5 5 9 10 5 Class Distribution -------------------- 29% | Hacker-Gladiator 27% | Hacker-Mutant 12% | Mutant 9% | Hacker-Scout 8% | Hacker-Sprinter 6% | Scavenger-Mutant 3% | Hacker-Assassin Dominant Class ---------------- Mutant | -10/Materials Scavenger-Mutant | -9/Materials Scavenger-Mutant | -9/Mines Scavenger-Mutant | -8/Materials Hacker-Mutant | -7/Factory Hacker-Gladiator | -6/Factory Hacker-Gladiator | -6/Lower Caves Hacker-Gladiator | -6/Lower Caves Hacker-Gladiator | -6/Data Miner Hacker-Gladiator | -5/Proximity Caves Hacker-Mutant | -5/Factory Mutant | -5/Waste Sprinter | -5/Factory Sprinter | -5/DSF Hacker-Sprinter | -4/Factory Hacker-Scout | -3/Research Hacker-Assassin | -2/Research Resources | -11 -10 -9 -9 -8 -7 -6 -6 -6 -6 -5 -5 -5 -5 -5 -4 -3 -2 ----------- Run | Yrd Mat Mat Min Mat Fac Fac Low Low Dat Pro Fac Was Fac DSF Fac Res Res Matter Collected 4023 | 185 435 226 7 256 388 506 113 91 . 98 737 103 . 217 193 26 442 Remotely . | . . . . . . . . . . . . . . . . . . Salvage Created 7333 | 17 394 531 7 370 978 1632 52 192 . 145 1938 . . . 297 26 754 Parts 373 | 5 23 34 . 17 70 81 8 6 . 7 63 . . . 9 1 49 Haulers Intercepted 7 | . . 2 . 2 1 . . . . . 2 . . . . . . Recyclers Shooed 7 | . . . . . . 2 . . . . 1 . . . . . 4 Parts Field Recycled . | . . . . . . . . . . . . . . . . . . Retrieved Matter . | . . . . . . . . . . . . . . . . . . Parts Self-Destructed 22 | . . . . . . . 10 . . 12 . . . . . . . Prevented 9 | . . . . . . . 2 5 . 2 . . . . . . . Kills | -11 -10 -9 -9 -8 -7 -6 -6 -6 -6 -5 -5 -5 -5 -5 -4 -3 -2 ------- Run | Yrd Mat Mat Min Mat Fac Fac Low Low Dat Pro Fac Was Fac DSF Fac Res Res Combat Hostiles Destroyed 121 | . 5 12 . 5 20 22 4 5 . 5 29 . . . 3 . 11 Melee 37 | . . . . 1 15 14 . 2 . 1 1 . . . . . 3 Guns 12 | . 5 1 . 4 . . . . . . 2 . . . . . . Cannons 5 | . . 4 . . . . . . . . . . . . . . 1 AOE 54 | . . 5 . . 5 7 4 1 . 1 22 . . . 3 . 6 Classes Destroyed 18 | 1 5 4 . 1 3 3 . . . . 1 . . . . . . Worker 22 | . 2 1 . . 3 5 . . . . 4 . . . . . 7 Builder 9 | . . . . 1 . 5 . . . . . . . . . . 3 Tunneler 2 | 1 . . 1 . . . . . . . . . . . . . . Hauler 7 | . . 2 . 2 1 . . . . . 2 . . . . . . Recycler 11 | . 1 2 . . 2 3 . . . . 2 . . . 1 . . Mechanic 1 | . . 1 . . . . . . . . . . . . . . . Operator 6 | . 1 1 . . . 1 . . . . . . . . 2 1 . Drone 1 | . . . . . 1 . . . . . . . . . . . . Watcher 11 | . 2 2 . . 1 1 . . . . 1 . . . 1 . 3 Swarmer 32 | . . 4 . . 7 . 4 3 . 4 5 . . . . . 5 Saboteur 2 | . . . . . . 1 . . . . . . . . 1 . . Grunt 50 | . 5 7 . 2 4 15 . . . . 14 . . . 2 . 1 Brawler 2 | . . . . . . 2 . . . . . . . . . . . Duelist 2 | . . . . . . 2 . . . . . . . . . . . Sentry 8 | . . 1 . 3 2 1 . . . . . . . . . . 1 Specialist 1 | . . . . . . . . . . . 1 . . . . . . Hunter 9 | . . . . . 1 . . 2 . 1 3 . . . . . 2 Programmer 13 | . . . . . 5 1 . . . . 5 . . . . . 2 Enhanced Grunt 1 | . . . . . . . . . . . 1 . . . . . . Best Kill Streak 12 | 1 5 6 1 3 8 9 4 3 . 3 12 . . . 3 1 9 Combat Bots Only 9 | . 2 5 . 1 8 5 4 3 . 3 9 . . . 3 . 5 Max Kills in Single Turn 5 | 1 1 3 1 1 2 3 4 1 . 1 3 . . . 2 1 5 Gunslinging . | . . . . . . . . . . . . . . . . . . Exploded 5 | . . 2 . . 2 1 4 1 . 1 2 . . . 2 . 5 Melee 1 | . . . . 1 1 1 . 1 . 1 1 . . . . . 1 Uniques/NPCs Destroyed . | . . . . . . . . . . . . . . . . . . Combat | -11 -10 -9 -9 -8 -7 -6 -6 -6 -6 -5 -5 -5 -5 -5 -4 -3 -2 -------- Run | Yrd Mat Mat Min Mat Fac Fac Low Low Dat Pro Fac Was Fac DSF Fac Res Res Hostile Shots Fired 1165 | . 61 86 2 25 196 160 5 64 . 60 194 . . 12 17 . 283 Missed 427 | . 9 29 1 8 75 66 2 19 . 13 78 . . 5 12 . 110 Damage Taken 12944 | . 726 606 11 255 1452 1709 49 731 . 792 2255 . . 263 282 . 3813 Core 3708 | . 166 118 . 77 344 199 . 155 . 231 851 . . 22 89 . 1456 Absorbed by Shields 137 | . . . . . 76 . . . . . . . . 61 . . . Redirected to Shielding 54 | . . . . . 54 . . . . . . . . . . . . Regen/Repaired (Parts) 495 | . . . . . 171 271 . . . . . 5 . 48 . . . Core Remaining (%) 63 | 100 33 . 70 86 50 . . . . 31 . . . 12 92 100 . Volleys Fired 184 | 1 46 30 . 15 3 13 1 6 . 1 50 . . . 4 . 14 Largest 2 | 2 2 2 . 2 1 1 1 1 . 1 2 . . . 1 . 1 Hottest 225 | 40 85 103 . 70 36 43 39 43 . 43 225 . . . 46 . 81 Shots Fired 262 | 2 91 45 . 27 3 13 1 6 . 1 54 1 . . 4 . 14 Gun 147 | 2 91 13 . 27 . . . . . . 13 1 . . . . . Cannon 51 | . . 27 . . . . . . . . 16 . . . . . 8 Launcher 64 | . . 5 . . 3 13 1 6 . 1 25 . . . 4 . 6 Special . | . . . . . . . . . . . . . . . . . . Kinetic 126 | 2 88 17 . 19 . . . . . . . . . . . . . Thermal 40 | . 3 23 . . . . . . . . 13 1 . . . . . Explosive 40 | . . 5 . . 3 9 1 . . . 12 . . . 4 . 6 Electromagnetic 56 | . . . . 8 . 4 . 6 . 1 29 . . . . . 8 Robot Hit Streak 10 | 2 6 6 . 9 5 3 . 2 . 2 10 . . . 2 . 6 Robot Miss Streak 4 | . 4 3 . 3 . 1 . 1 . . 2 1 . . . . 2 Penetration Max . | . . . . . . . . . . . . . . . . . . Secondary Targets . | . . . . . . . . . . . . . . . . . . Capacitor 9 | . . . . . . . . . . . 9 . . . . . . Shots Hit Robots 338 | 2 56 29 2 27 42 59 . 13 . 10 45 . . . 9 1 43 Core Hits 254 | 1 23 21 . 15 24 51 5 4 . 3 71 1 . . 9 . 26 Critical Kills 2 | . . 1 . 1 . . . . . . . . . . . . . Critical Parts Destroyed 5 | . . 1 2 . . . . 1 . 1 . . . . . . . Critical Strikes 29 | . . 3 2 1 5 10 . 1 . 1 1 . . . . . 5 Destroy 1 | . . . . 1 . . . . . . . . . . . . . Blast 1 | . . 1 . . . . . . . . . . . . . . . Smash 6 | . . 2 2 . . . . 1 . 1 . . . . . . . Sever 16 | . . . . . 5 10 . . . . 1 . . . . . . Impale 5 | . . . . . . . . . . . . . . . . . 5 Melee Attacks 455 | . . 31 2 18 134 102 1 13 . 12 31 . 3 . 32 12 64 Impact 54 | . . 31 2 1 . . . 10 . 10 . . . . . . . Slashing 335 | . . . . 17 134 102 1 3 . 2 31 . 3 . 32 10 . Piercing 66 | . . . . . . . . . . . . . . . . 2 64 Sneak Attacks 42 | . . 2 1 2 7 10 . . . . 4 . . . 2 1 13 Combat Hostiles 1 | . . . . . . 1 . . . . . . . . . . . Follow-up Attacks 13 | . . . . . 1 3 . 3 . 1 . . . . . . 5 Damage Inflicted 22829 | 17 566 1175 93 591 2876 4783 229 687 . 503 6196 12 . . 1315 160 3626 Guns 1380 | 17 560 60 . 387 . . . . . . 344 12 . . . . . Cannons 949 | . . 360 . . . . . . . . 361 . . . . . 228 Explosions 9943 | . . 377 . . 524 1595 229 227 . 55 4630 . . . 877 . 1429 Melee 10536 | . . 378 93 204 2337 3188 . 460 . 448 861 . . . 438 160 1969 Ramming 21 | . 6 . . . 15 . . . . . . . . . . . . Kinetic 1016 | 17 509 209 . 281 . . . . . . . . . . . . . Thermal 2038 | . 51 211 . . . 122 . . . . 1642 12 . . . . . Explosive 6108 | . . 377 . . 524 1172 229 . . . 1500 . . . 877 . 1429 Electromagnetic 3110 | . . . . 106 . 301 . 227 . 55 2193 . . . . . 228 Impact 1212 | . . 378 93 . . . . 333 . 408 . . . . . . . Slashing 7355 | . . . . 204 2337 3188 . 127 . 40 861 . . . 438 160 . Piercing 1969 | . . . . . . . . . . . . . . . . . 1969 Highest Corruption 16 | . 1 . . . 2 . . . . 12 16 9 9 9 . . . Average Corruption 4 | . 1 . . . 1 . . . . 11 7 9 9 9 . . . Corruption Purged 1 | . . . . . . . . . . . 1 . . . . . . Corruption Blocked . | . . . . . . . . . . . . . . . . . . Effects 85 | . 3 . . . 19 . . . . 13 36 5 5 4 . . . Message Errors 22 | . . . . . 5 . . . . 3 11 . 1 2 . . . Matter Fused 18 | . 1 . . . 7 . . . . 1 5 2 1 1 . . . Heat Flow Errors 15 | . 1 . . . 2 . . . . 2 7 2 1 . . . . Energy Discharges 11 | . . . . . 2 . . . . 4 4 . 1 . . . . Parts Rejected 1 | . . . . . . . . . . . 1 . . . . . . Data Loss (minor) 9 | . 1 . . . 1 . . . . 2 3 . 1 1 . . . Data Loss (major) 4 | . . . . . 2 . . . . 1 1 . . . . . . Misfires 1 | . . . . . . . . . . . . 1 . . . . . Alerts 2 | . . . . . . . . . . . 2 . . . . . . Weapon Failures 2 | . . . . . . . . . . . 2 . . . . . . Overload Shots 3 | . . . . . . . . . . . 3 . . . . . . Overflow Damage 2259 | . . 176 93 . 223 381 . 178 . 128 371 . . . 147 125 437 Projectiles 22 | . . 10 . . . . . . . . 7 . . . . . 5 Explosions 469 | . . . . . 21 44 . 17 . 9 226 . . . 56 . 96 Melee 1768 | . . 166 93 . 202 337 . 161 . 119 138 . . . 91 125 336 Knockbacks 3 | . . . . . . . . . . 3 . . . . . . . Impact 3 | . . . . . . . . . . 3 . . . . . . . Kinetic . | . . . . . . . . . . . . . . . . . . Secondary . | . . . . . . . . . . . . . . . . . . Self-Inflicted Damage 120 | . . . . . 7 7 . 46 . 23 34 . . . . . 3 Shots 9 | . . . . . . 1 . 3 . 1 3 . . . . . 1 Rammed 3 | . . . . . 2 . . . . . . . . . . . 1 Targets Rammed 9 | . 6 . . . 2 . . . . . . . . . . . 1 Kicked 6 | . 6 . . . . . . . . . . . . . . . . Crushed . | . . . . . . . . . . . . . . . . . . Highest Temperature 325 | . 122 240 . 27 275 10 . 4 . 175 325 154 257 17 2 215 36 Average Temperature 60 | . 19 66 . 9 116 3 . 2 . 72 72 79 135 8 2 113 15 Received Heat Transfer 2136 | . 510 234 6 108 270 522 9 . . 9 327 . . 24 18 . 99 Effects 4 | . . . . . . . . . . . 4 . . . . . . Interference 3 | . . . . . . . . . . . 3 . . . . . . Short Circuit 1 | . . . . . . . . . . . 1 . . . . . . Siege Activations . | . . . . . . . . . . . . . . . . . . Robots Corrupted 15 | . . 3 1 . . 1 . 2 . 3 4 . . . . . 1 Combat Hostiles 13 | . . 2 . . . 1 . 2 . 3 4 . . . . . 1 Parts Fried 19 | . . 2 1 . . . . 5 . 5 6 . . . . . . Impact Corruptions 19 | . . 6 3 . . . . 6 . 4 . . . . . . . Robots Melted . | . . . . . . . . . . . . . . . . . . Combat Hostiles . | . . . . . . . . . . . . . . . . . . Parts Melted 2 | . . 1 . . . . . . . . 1 . . . . . . Heat Transferred 2273 | . 111 407 . . . 100 . . . . 1618 37 . . . . . Parts Sabotaged . | . . . . . . . . . . . . . . . . . . Parts Stolen . | . . . . . . . . . . . . . . . . . . Parts Stripped . | . . . . . . . . . . . . . . . . . . Power Chain Reactions 7 | . . . . . . 1 . 1 . . 5 . . . . . . Alert | -11 -10 -9 -9 -8 -7 -6 -6 -6 -6 -5 -5 -5 -5 -5 -4 -3 -2 ------- Run | Yrd Mat Mat Min Mat Fac Fac Low Low Dat Pro Fac Was Fac DSF Fac Res Res Peak Influence 1341 | 5 95 525 209 338 913 1004 . . . . 1341 624 596 953 971 478 612 Initial 469 | . 3 5 204 81 153 447 . . . . . 469 436 417 447 424 268 Average 415 | . 24 196 206 223 299 607 . . . . 510 573 500 700 753 440 467 Maximum Alert Level 4 | . . 2 1 1 3 3 . . . . 4 2 2 3 3 2 2 Low Security (%) 26 | 100 100 57 . 29 27 . . . . . 35 . . . . . . Level 1 20 | . . 27 100 70 50 . . . . . 5 . . 2 . . 32 Level 2 37 | . . 15 . . 19 75 . . . . 23 100 100 41 32 100 67 Level 3 14 | . . . . . 2 24 . . . . 19 . . 56 67 . . Level 4 2 | . . . . . . . . . . . 15 . . . . . . Level 5 . | . . . . . . . . . . . . . . . . . . High Security . | . . . . . . . . . . . . . . . . . . Max Security . | . . . . . . . . . . . . . . . . . . Sterilizations 1 | . . . . . . . . . . . . . . 1 . . . Squads Dispatched 79 | . 1 5 . 4 16 14 . . . . 18 . 1 2 8 3 7 Investigation 24 | . . 2 . . 8 4 . . . . 5 . . . 4 1 . Extermination 16 | . . . . . 7 1 . . . . 4 . . . 1 1 2 Reinforcement 24 | . 1 3 . 2 1 7 . . . . 4 . . 2 . . 4 Assault 10 | . . . . . . 2 . . . . 2 . 1 . 3 1 1 Garrison 5 | . . . . 2 . . . . . . 3 . . . . . . Intercept . | . . . . . . . . . . . . . . . . . . Searches Triggered 1 | . . . . . 1 . . . . . . . . . . . . Data Miner Redirects 4 | . . . . . . . . . . . 1 . 1 . 1 . 1 Construction Impeded 4 | . . 1 . . . 1 . . . . 2 . . . . . . Haulers Reinforced 2 | . . . . . . . . . . . 1 . . . . . 1 Active Scanning Responses . | . . . . . . . . . . . . . . . . . . Cargo Convoy Interrupts 2 | . . . . . . 1 . . . . 1 . . . . . . Stealth | -11 -10 -9 -9 -8 -7 -6 -6 -6 -6 -5 -5 -5 -5 -5 -4 -3 -2 --------- Run | Yrd Mat Mat Min Mat Fac Fac Low Low Dat Pro Fac Was Fac DSF Fac Res Res Distress Signals 19 | . . 2 . 2 4 4 . . . . 5 . . . . 1 1 Communications Jammed . | . . . . . . . . . . . . . . . . . . Distress Signals . | . . . . . . . . . . . . . . . . . . Times Spotted 306 | . 11 35 3 8 54 56 7 6 . 10 58 3 . 9 22 2 22 Peak Tracking Total 13 | . 2 6 3 2 6 8 4 3 . 5 13 2 . 4 5 4 9 Tactical Retreats 65 | . . 7 . . 19 11 2 2 . 1 13 . . 1 5 . 4 Traps | -11 -10 -9 -9 -8 -7 -6 -6 -6 -6 -5 -5 -5 -5 -5 -4 -3 -2 ------- Run | Yrd Mat Mat Min Mat Fac Fac Low Low Dat Pro Fac Was Fac DSF Fac Res Res Traps Triggered 12 | . 1 . . . 2 2 . . . . 3 . . 1 2 . 1 Indirectly . | . . . . . . . . . . . . . . . . . . Trap Hack Attempts 8 | . . 7 . . . . . . . . . . . . 1 . . Triggered . | . . . . . . . . . . . . . . . . . . Disarmed 1 | . . . . . . . . . . . . . . . 1 . . Reprogrammed 2 | . . 2 . . . . . . . . . . . . . . . Reused 1 | . . 1 . . . . . . . . . . . . . . . Traps Extracted . | . . . . . . . . . . . . . . . . . . Installed . | . . . . . . . . . . . . . . . . . . Triggered 3 | . . 1 . . . 1 1 . . . . . . . . . . Machines | -11 -10 -9 -9 -8 -7 -6 -6 -6 -6 -5 -5 -5 -5 -5 -4 -3 -2 ---------- Run | Yrd Mat Mat Min Mat Fac Fac Low Low Dat Pro Fac Was Fac DSF Fac Res Res Machines Disabled 33 | . . . . 1 3 3 1 . . . 21 . 1 . 3 . . Max in Single Turn 6 | . . . . 1 1 1 1 . . . 6 . 1 . 1 . . Garrison Access 8 | . . . . 1 1 2 . . . . . . 1 . 2 . 1 Machines Repaired . | . . . . . . . . . . . . . . . . . . Machines Dismantled 2 | . . . . . 1 . . . . . . . 1 . . . . Machines Sabotaged . | . . . . . . . . . . . . . . . . . . Overloaded Fab Kills . | . . . . . . . . . . . . . . . . . . Hacking | -11 -10 -9 -9 -8 -7 -6 -6 -6 -6 -5 -5 -5 -5 -5 -4 -3 -2 --------- Run | Yrd Mat Mat Min Mat Fac Fac Low Low Dat Pro Fac Was Fac DSF Fac Res Res Machines Accessed 88 | . 9 3 . 7 19 19 1 . 4 . 6 . 2 . 10 4 4 Terminals 53 | . 7 3 . 6 10 10 . . . . 2 . 1 . 7 4 3 Fabricators 11 | . . . . . 3 4 . . . . 3 . . . 1 . . Repair Stations 4 | . . . . . 2 2 . . . . . . . . . . . Recycling Units 4 | . 2 . . . . . . . . . . . 1 . 1 . . Scanalyzers 5 | . . . . . 3 1 . . . . 1 . . . . . . Garrison Access 6 | . . . . 1 1 2 . . . . . . . . 1 . 1 Total Hacks 258 | . 24 7 . 16 44 59 1 . 31 . 23 . 3 . 33 8 9 Successful 155 | . 8 3 . 6 27 32 1 . 31 . 13 . 2 . 22 4 6 Failed 103 | . 16 4 . 10 17 27 . . . . 10 . 1 . 11 4 3 Catastrophic 25 | . 6 2 . 3 3 5 . . . . 2 . . . 2 2 . Database Lockouts . | . . . . . . . . . . . . . . . . . . Manual 97 | . 15 4 . 7 23 21 . . . . 5 . . . 16 3 3 Terminals 152 | . 21 7 . 14 25 29 . . . . 11 . 2 . 29 8 6 Fabricators 31 | . . . . . 6 15 . . . . 9 . . . 1 . . Repair Stations 15 | . . . . . 6 9 . . . . . . . . . . . Recycling Units 5 | . 3 . . . . . . . . . . . 1 . 1 . . Scanalyzers 10 | . . . . . 6 1 . . . . 3 . . . . . . Garrison Access 13 | . . . . 2 1 5 . . . . . . . . 2 . 3 Terminal Hacks 99 | . 5 3 . 5 8 14 1 . 31 . 4 . 1 . 18 4 5 Record 19 | . . . . . . 2 1 . 11 . 1 . . . 1 1 2 Part Schematic 18 | . . . . . 2 4 . . 12 . . . . . . . . Robot Schematic 5 | . . . . . . . . . 5 . . . . . . . . Prototype ID Bank 9 | . 1 . . . 2 . . . 3 . . . . . 3 . . Open DSF 1 | . . . . . . . . . . . . . 1 . . . . Level Access Points 4 | . . 1 . . . . . . . . . . . . 1 1 1 Branch Access Points 3 | . . 1 . . . 1 . . . . . . . . 1 . . Machine Index 1 | . . . . 1 . . . . . . . . . . . . . Terminal Index 1 | . . . . . . . . . . . . . . . 1 . . Fabricator Index 3 | . . . . . . 1 . . . . 1 . . . 1 . . Recycling Unit Index 1 | . 1 . . . . . . . . . . . . . . . . Alert Level 5 | . . . . 1 . 1 . . . . 1 . . . 1 1 . Maintenance Status 1 | . . . . . . . . . . . . . . . 1 . . Patrol Status 2 | . . . . . . . . . . . . . . . 1 . 1 Recall Extermination 3 | . . . . . 2 . . . . . . . . . 1 . . Recall Reinforcements 3 | . . . . 1 1 1 . . . . . . . . . . . Recall Assault 2 | . . . . . . 1 . . . . . . . . 1 . . Hauler Manifests 3 | . 1 . . 1 . . . . . . . . . . 1 . . Registered Components 2 | . 1 . . . . . . . . . . . . . 1 . . Registered Prototypes 2 | . . . . . . 1 . . . . . . . . 1 . . Zone Layout 11 | . 1 1 . 1 1 2 . . . . 1 . . . 2 1 1 Fabricator Hacks 15 | . . . . . 2 6 . . . . 6 . . . 1 . . Network Status 2 | . . . . . . 1 . . . . . . . . 1 . . Load Schematic 6 | . . . . . 1 2 . . . . 3 . . . . . . Build 7 | . . . . . 1 3 . . . . 3 . . . . . . Repair Station Hacks 14 | . . . . . 6 8 . . . . . . . . . . . Scan Component 7 | . . . . . 3 4 . . . . . . . . . . . Repair 7 | . . . . . 3 4 . . . . . . . . . . . Recycling Unit Hacks 4 | . 2 . . . . . . . . . . . 1 . 1 . . Report Inventory 2 | . . . . . . . . . . . . . 1 . 1 . . Retrieve Components 2 | . 2 . . . . . . . . . . . . . . . . Scanalyzer 6 | . . . . . 4 . . . . . 2 . . . . . . Insert Component 3 | . . . . . 2 . . . . . 1 . . . . . . Analyze 3 | . . . . . 2 . . . . . 1 . . . . . . Garrison Access Hacks 6 | . . . . 1 1 2 . . . . . . . . 1 . 1 Seal Access 6 | . . . . 1 1 2 . . . . . . . . 1 . 1 Unauthorized Hacks 11 | . 1 . . . 6 2 . . . . 1 . . . 1 . . Terminals 4 | . 1 . . . 2 . . . . . . . . . 1 . . Assimilate 3 | . . . . . 2 . . . . . . . . . 1 . . Detonate 1 | . 1 . . . . . . . . . . . . . . . . Fabricators 5 | . . . . . 2 2 . . . . 1 . . . . . . Fabnet 5 | . . . . . 2 2 . . . . 1 . . . . . . Repair Stations . | . . . . . . . . . . . . . . . . . . Recycling Units . | . . . . . . . . . . . . . . . . . . Scanalyzers 2 | . . . . . 2 . . . . . . . . . . . . Extract 2 | . . . . . 2 . . . . . . . . . . . . Garrison Access . | . . . . . . . . . . . . . . . . . . Data Cores Recovered 3 | . . 1 . . . . . . . . . . . . 2 . . Used 1 | . . . . . . . . . . . . . . . 1 . . Hacking Detections 72 | . 8 3 . 6 14 18 . . . . 6 . 1 . 8 4 4 Full Trace Events 21 | . 1 2 . . 5 4 . . . . 4 . . . 4 1 . Feedback Events 1 | . . . . . . . . . . . 1 . . . . . . Corruption 1 | . . . . . . . . . . . 1 . . . . . . Feedback Blocked . | . . . . . . . . . . . . . . . . . . Robot Schematics Acquired 5 | . . . . . . . . . 5 . . . . . . . . Robots Built 2 | . . . . . . 2 . . . . . . . . . . . Authchips . | . . . . . . . . . . . . . . . . . . Time 58 | . . . . . . 58 . . . . . . . . . . . Total Robot Build Rating 6 | . . . . . . 6 . . . . . . . . . . . Part Schematics Acquired 31 | . . . . . 14 4 . . 12 . 1 . . . . . . Parts Built 10 | . . . . . 2 3 . . . . 5 . . . . . . Authchips . | . . . . . . . . . . . . . . . . . . Time 466 | . . . . . 42 106 . . . . 318 . . . . . . Total Part Build Rating 60 | . . . . . 8 18 . . . . 34 . . . . . . Parts Repaired 7 | . . . . . 3 4 . . . . . . . . . . . Time 280 | . . . . . 104 176 . . . . . . . . . . . Parts Recycled . | . . . . . . . . . . . . . . . . . . Recycled Matter . | . . . . . . . . . . . . . . . . . . Retrieved Matter . | . . . . . . . . . . . . . . . . . . Retrieved Components 20 | . 20 . . . . . . . . . . . . . . . . Parts Scanalyzed 3 | . . . . . 2 . . . . . 1 . . . . . . Part Schematics Acquired 3 | . . . . . 2 . . . . . 1 . . . . . . Parts Damaged . | . . . . . . . . . . . . . . . . . . Bothacking | -11 -10 -9 -9 -8 -7 -6 -6 -6 -6 -5 -5 -5 -5 -5 -4 -3 -2 ------------ Run | Yrd Mat Mat Min Mat Fac Fac Low Low Dat Pro Fac Was Fac DSF Fac Res Res Used RIF Installer . | . . . . . . . . . . . . . . . . . . Robots Hacked 18 | . . . . . . 4 2 . . 3 5 . . 1 3 . . Non-combat . | . . . . . . . . . . . . . . . . . . Combat 18 | . . . . . . 4 2 . . 3 5 . . 1 3 . . Robot Hacks Applied . | . . . . . . . . . . . . . . . . . . Relay Couplers Released 3 | . . . . . . . . . . . . . 2 . 1 . . Machine Destruction 3 | . . . . . . . . . . . . . 2 . 1 . . Fabnet Peak Effective % 8 | . . . . . . 6 6 6 6 8 8 8 8 8 5 1 . Autooverrided 18 | . . . . . . 4 2 . . 3 5 . . 1 3 . . Robots Rewired 2 | . . . . . 1 1 . . . . . . . . . . . Allies Hacked . | . . . . . . . . . . . . . . . . . . Hacks Repelled . | . . . . . . . . . . . . . . . . . . Allies | -11 -10 -9 -9 -8 -7 -6 -6 -6 -6 -5 -5 -5 -5 -5 -4 -3 -2 -------- Run | Yrd Mat Mat Min Mat Fac Fac Low Low Dat Pro Fac Was Fac DSF Fac Res Res Total Allies 48 | . . . . . 3 10 2 . . 4 5 19 . 1 4 . . Largest Group 19 | . . . . . 2 5 1 . . 2 2 19 18 16 1 . . Highest-Rated Group 702 | . . . . . 31 120 29 . . 143 150 702 663 555 54 . . Highest-Rated Ally 96 | . . . . . 26 41 29 . . 96 96 50 50 50 54 . . Total Orders 3 | . . . . . 1 1 . . . . . . . . 1 . . STAY 2 | . . . . . 1 . . . . . . . . . 1 . . GUARD 1 | . . . . . . 1 . . . . . . . . . . . Ally Attacks 372 | . . . . . 6 62 8 . . 17 28 149 . 92 10 . . Total Damage 10482 | . . . . . 171 1082 112 . . 461 986 5326 . 2253 91 . . Kills 42 | . . . . . 1 5 1 . . 4 9 7 . 14 1 . . Allies Corrupted . | . . . . . . . . . . . . . . . . . . Allies Melted 1 | . . . . . . 1 . . . . . . . . . . . Intel | -11 -10 -9 -9 -8 -7 -6 -6 -6 -6 -5 -5 -5 -5 -5 -4 -3 -2 ------- Run | Yrd Mat Mat Min Mat Fac Fac Low Low Dat Pro Fac Was Fac DSF Fac Res Res Robot Analysis Total . | . . . . . . . . . . . . . . . . . . Derelict Logs Recovered 4 | . . . . . . . 2 1 . 1 . . . . . . . Drone Launches . | . . . . . . . . . . . . . . . . . . Drone Recoveries . | . . . . . . . . . . . . . . . . . . Exploration | -11 -10 -9 -9 -8 -7 -6 -6 -6 -6 -5 -5 -5 -5 -5 -4 -3 -2 ------------- Run | Yrd Mat Mat Min Mat Fac Fac Low Low Dat Pro Fac Was Fac DSF Fac Res Res Turns Passed 12545 | 93 1016 752 14 357 2743 1845 337 367 104 453 1599 189 127 131 1009 353 1056 Spaces Moved 13016 | 65 677 540 15 380 2914 2111 329 284 84 345 1559 234 187 242 1858 379 813 Core 130 | 5 . . . . . . . . . 2 107 . . . . . 16 Treads 102 | . . . . . 95 . . . . . 7 . . . . . . Legs 411 | 60 351 . . . . . . . . . . . . . . . . Wheels 655 | . 326 77 . . . . . 110 84 58 . . . . . . . Hover 7636 | . . 463 15 380 2819 2111 329 174 . 34 847 93 . . . . 371 Flight 4082 | . . . . . . . . . . 251 598 141 187 242 1858 379 426 Fastest Speed 24 | 50 100 52 52 45 48 43 43 43 125 53 24 25 32 28 27 27 25 Average Speed 61 | 114 117 61 52 52 64 55 95 102 125 113 67 50 32 29 27 27 66 Slowest Speed 650 | 120 190 115 52 116 160 112 101 125 125 435 650 115 32 32 109 27 250 Overloaded Moves 83 | . . . . . . 38 26 19 . . . . . . . . . Propulsion Burnouts . | . . . . . . . . . . . . . . . . . . Robots Hopped 8 | . . . . . . . . . . . . . . . 6 . 2 Cave-ins Triggered . | . . . . . . . . . . . . . . . . . . Exploration Rate (%) 42 | 4 57 42 11 37 55 45 58 36 70 62 30 85 6 95 33 14 18 Regions Visited 17 Branch Regions 5 Pre-discovered Areas 2 | . . . . . . . 1 . 1 . . . . . . . . Known Exits Taken 9 | . . 1 1 . . 1 . 1 1 1 . . 1 . 1 1 . Unknown Exits Taken 5 | 1 1 . . 1 1 . 1 . . . . . . . . . . Scrap Searched 7 | . . . . . . . 2 3 . 2 . . . . . . . Spaces Dug 268 | . . 21 . 13 83 42 . . . . 54 . 3 . 25 9 18 Terrain Destroyed 796 | . . 35 . 13 126 79 19 4 . . 291 . 3 . 108 9 109 Melee 219 | . . 21 . 13 83 34 . . . . 13 . 3 . 25 9 18 Projectile 2 | . . 1 . . . . . . . . 1 . . . . . . AOE 575 | . . 13 . . 43 45 19 4 . . 277 . . . 83 . 91 Terrain Rammed . | . . . . . . . . . . . . . . . . . . Walls Destroyed . | . . . . . . . . . . . . . . . . . . Machines Disabled . | . . . . . . . . . . . . . . . . . . Actions | -11 -10 -9 -9 -8 -7 -6 -6 -6 -6 -5 -5 -5 -5 -5 -4 -3 -2 --------- Run | Yrd Mat Mat Min Mat Fac Fac Low Low Dat Pro Fac Was Fac DSF Fac Res Res Total 16455 | 79 818 852 16 489 3488 2588 347 330 83 384 2009 305 236 299 2298 615 1219 Wait 2139 | . 56 195 . 13 353 286 7 19 . 6 236 69 20 30 356 204 289 Move 12984 | 64 676 539 14 379 2913 2110 328 283 83 344 1559 233 186 241 1845 378 809 Hop 8 | . . . . . . . . . . . . . . . 6 . 2 Pick Up 142 | 7 12 9 . 19 11 19 2 4 . 7 23 . 1 3 12 5 8 Fast Attach 131 | 6 6 7 . 8 14 10 . 2 . 5 29 1 8 10 11 4 10 Attach 90 | 1 3 7 . 5 8 11 3 3 . 4 20 . . . 9 4 12 Detach 53 | . 1 4 . 2 3 4 . . . 1 20 . . 2 6 3 7 Swap 77 | . 1 9 . 7 12 18 5 2 . 2 11 . 1 1 1 1 6 Drop 161 | . 11 14 . 23 24 13 . 1 . 4 30 2 6 8 15 6 4 Fire 184 | 1 46 30 . 15 3 13 1 6 . 1 50 . . . 4 . 14 Melee 435 | . . 31 2 18 132 98 1 10 . 10 31 . 3 . 32 10 57 Ram 3 | . . . . . 2 . . . . . . . . . . . 1 Kick 6 | . 6 . . . . . . . . . . . . . . . . Crush . | . . . . . . . . . . . . . . . . . . Escape Stasis 4 | . . . . . . . . . . . . . . 4 . . . Rewire 9 | . . . . . 3 6 . . . . . . . . . . . Trap 8 | . . 7 . . . . . . . . . . . . 1 . . Miscellaneous 21 | . . . . . 10 . . . . . . . 11 . . . . Route ------- -11/Scrapyard -10/Materials (discovered 2 exits: *Mat / [*Min]) -9/Materials (discovered 5 exits: *Mat x3 / *Min x2) -9/Mines -8/Materials -7/Factory (discovered 5 exits: *Fac x3 / [*Low x2]) -6/Factory (discovered 5 exits: *Fac / *Low x2 / *Ext x2) -6/Lower Caves -6/Lower Caves (discovered 2 exits: *Fac / *Dat) -6/Data Miner -5/Proximity Caves -5/Factory (discovered 3 exits: *Fac x2 / Upp) -5/Waste -5/Factory (discovered 2 exits: *Fac / DSF) -5/DSF -4/Factory (discovered 6 exits: *Res x4 / *Upp x2) -3/Research (discovered 3 exits: *Res x3) -2/Research (discovered 3 exits: Acc x3) History --------- Turn | Location | Event 13 | -11/Scrapyard | Discovered new exit (range 14) 94 | -11/Scrapyard | Entered Materials 302 | -10/Materials | Build established: Mutant 306 | -10/Materials | Discovered new exit (range 11) 624 | -10/Materials | Discovered new exit (range 13) 756 | -10/Materials | Core integrity fell below 50% 804 | -10/Materials | Lost 3 parts (1p1n1w) 1110 | -10/Materials | Entered another Materials area 1110 | -9/Materials | Evolved 2 slots: Propulsion x1, Utility x1 1611 | -9/Materials | Discovered new exit (range 11) 1619 | -9/Materials | Identified exit to Materials 1779 | -9/Materials | Build established: Scavenger-Mutant 1779 | -9/Materials | Identified exit to Mines 1862 | -9/Materials | Entered Mines 1873 | -9/Mines | Discovered exit to Materials (range 5) 1876 | -9/Mines | Entered Materials 1876 | -8/Materials | Evolved 2 slots: Propulsion x1, Utility x1 2019 | -8/Materials | Garrison activated, responded to threat 2145 | -8/Materials | Discovered new exit (range 3) 2233 | -8/Materials | Entered Factory 2233 | -7/Factory | Evolved 2 slots: Utility x2 2440 | -7/Factory | Build established: Hacker-Mutant 2545 | -7/Factory | Discovered new exit (range 5) 3112 | -7/Factory | Discovered new exit (range 14) 3470 | -7/Factory | Repaired Greatsword 3538 | -7/Factory | Discovered new exit (range 10) 4042 | -7/Factory | Discovered new exit (range 11) 4119 | -7/Factory | Discovered new exit (range 15) 4249 | -7/Factory | Repaired Greatsword 4435 | -7/Factory | Repaired Imp. Sensor Array? 4551 | -7/Factory | Build established: Hacker-Gladiator 4633 | -7/Factory | Search patrols dispatched 4890 | -7/Factory | Fabricated Greatsword? 4956 | -7/Factory | Destroyed 8 combat bots 4960 | -7/Factory | Lost 3 parts (1n1u1w) 4976 | -7/Factory | Entered another Factory area 4976 | -6/Factory | Evolved 2 slots: Utility x2 5005 | -6/Factory | Discovered new exit (range 12) 5012 | -6/Factory | Found Powered Armor 5119 | -6/Factory | Repaired Mic. Nuclear Core 5168 | -6/Factory | Repaired Gravmag System 5237 | -6/Factory | Repaired Greatsword 5409 | -6/Factory | Spotted B-75 Beast 5676 | -6/Factory | First assault squad dispatched 5691 | -6/Factory | Cargo convoy interrupted 5718 | -6/Factory | Repaired Powered Armor? 5834 | -6/Factory | Discovered new exit (range 12) 5923 | -6/Factory | Allied Derelicts emerged from ambush trap array 6065 | -6/Factory | Identified exit to Lower Caves 6065 | -6/Factory | Identified exit to Extension 6238 | -6/Factory | Fabricated H-55 Commando? 6390 | -6/Factory | Lost 3 parts (3n) 6400 | -6/Factory | Fabricated Antigrav System? 6539 | -6/Factory | Fabricated Adv. Hacking Suite? 6821 | -6/Factory | Entered Lower Caves 6835 | -6/Lower Caves | Learned location of 1 exit from Factory 6843 | -6/Lower Caves | Found Alien Artifact 6846 | -6/Lower Caves | Identified Dimensional Node Initializer 6846 | -6/Lower Caves | Initialized slip node 6992 | -6/Lower Caves | Learned location of Extension (-6) 7149 | -6/Lower Caves | Discovered new exit (range 10) 7158 | -6/Lower Caves | Entered another Lower Caves area 7163 | -6/Lower Caves | Discovered new exit (range 7) 7208 | -6/Lower Caves | Lost 3 parts (1n2u) 7470 | -6/Lower Caves | Learned 12 Factory zone layouts 7471 | -6/Lower Caves | Discovered new exit (range 3) 7476 | -6/Lower Caves | Identified exit to Data Miner 7525 | -6/Lower Caves | Entered Data Miner 7525 | -6/Data Miner | Discovered new exit (range 6) 7549 | -6/Data Miner | Met Data Miner 7574 | -6/Data Miner | Learned location of Section 7 (-3) 7574 | -6/Data Miner | Acquired the access code to Warlord's prototype stash 7595 | -6/Data Miner | Received God Mode back door access code from Data Miner 7624 | -6/Data Miner | Identified exit to Proximity Caves 7629 | -6/Data Miner | Entered Proximity Caves 7747 | -5/Proximity Caves | Core integrity fell below 50% 7778 | -5/Proximity Caves | Lost 6 parts (3n1u2w) 7795 | -5/Proximity Caves | Escorted by Enhanced Grunt 7800 | -5/Proximity Caves | System corruption reached 10% 8044 | -5/Proximity Caves | Learned location of 1 exit from Factory 8059 | -5/Proximity Caves | Discovered new exit (range 8) 8080 | -5/Proximity Caves | Identified exit to Factory 8082 | -5/Proximity Caves | Entered Factory 8082 | -5/Factory | Accompanied by 1 ally 8082 | -5/Factory | Evolved 2 slots: Propulsion x1, Utility x1 8083 | -5/Factory | Identified exit to Upper Caves 8083 | -5/Factory | Identified exit to Factory 8478 | -5/Factory | Fabricated HERF Cannon (x2) 8694 | -5/Factory | Cargo convoy interrupted 8761 | -5/Factory | Destroyed 9 combat bots 8764 | -5/Factory | System corruption reached 10% 8836 | -5/Factory | Garrison activated, responded to threat 8930 | -5/Factory | Fabricated Quantum Capacitor (x2) 9051 | -5/Factory | Incoming investigation squad redirected 9092 | -5/Factory | Local machine network offline 9166 | -5/Factory | Fabricated Exp. Cesium-ion Thruster? 9185 | -5/Factory | Lost 6 parts (1p3n1u1w) 9196 | -5/Factory | Build established: Hacker-Mutant 9363 | -5/Factory | Core integrity fell below 50% 9393 | -5/Factory | Lost 5 parts (1n3u1w) 9457 | -5/Factory | Destroyed 7 combat bots 9569 | -5/Factory | Core integrity fell below 20% 9605 | -5/Factory | Found Launcher Loader 9617 | -5/Factory | First assault squad dispatched 9681 | -5/Factory | Sucked down chute 9681 | -5/Factory | Entered Waste 9687 | -5/Waste | Warlord forces began an assault 9710 | -5/Waste | Spotted C-40 Crusher 9715 | -5/Waste | Allies destroyed C-40 Crusher 9739 | -5/Waste | Spotted C-40 Crusher 9746 | -5/Waste | Spotted C-40 Crusher 9746 | -5/Waste | Allies destroyed C-40 Crusher 9750 | -5/Waste | Allies destroyed C-40 Crusher 9766 | -5/Waste | Spotted C-40 Crusher 9772 | -5/Waste | Spotted C-40 Crusher 9773 | -5/Waste | Allies destroyed C-40 Crusher 9788 | -5/Waste | Allies destroyed C-40 Crusher 9792 | -5/Waste | Spotted C-40 Crusher 9794 | -5/Waste | Allies destroyed C-40 Crusher 9841 | -5/Waste | Discovered new exit (range 11) 9866 | -5/Waste | Identified exit to Factory 9870 | -5/Waste | Entered Factory 9870 | -5/Factory | Accompanied by 18 allies 9881 | -5/Factory | Discovered exit to Factory (range 11) 9970 | -5/Factory | Incoming assault squad redirected 9977 | -5/Factory | Identified exit to DSF 9997 | -5/Factory | Entered DSF 9997 | -5/DSF | Accompanied by 15 allies 10005 | -5/DSF | Local machine network offline 10015 | -5/DSF | Additional patrols routed to DSF 10038 | -5/DSF | Lost 3 parts (2u1w) 10056 | -5/DSF | Discovered exit to Factory (range 15) 10079 | -5/DSF | Sterilization system engaged 10099 | -5/DSF | Ambient heat levels rising (+10) 10114 | -5/DSF | Ambient heat levels rising (+10) 10128 | -5/DSF | Entered Factory 10128 | -4/Factory | Evolved 2 slots: Power x1, Utility x1 10137 | -4/Factory | Lost 7 allies 10216 | -4/Factory | Identified exit to Upper Caves 10279 | -4/Factory | Spotted B-86 Titan 10297 | -4/Factory | Build established: Hacker-Sprinter 10406 | -4/Factory | First assault squad dispatched 10608 | -4/Factory | Incoming assault squad redirected 10641 | -4/Factory | Spotted B-86 Titan 10737 | -4/Factory | Discovered new exit (range 11) 10741 | -4/Factory | Identified exit to Research 10982 | -4/Factory | Local machine network offline 10994 | -4/Factory | Build established: Hacker-Scout 11137 | -4/Factory | Entered Research 11137 | -3/Research | Evolved 2 slots: Propulsion x1, Utility x1 11148 | -3/Research | Identified exit to Research 11417 | -3/Research | First assault squad dispatched 11487 | -3/Research | Found Fusion Bomb Launcher 11490 | -3/Research | Entered another Research area 11490 | -2/Research | Evolved 2 slots: Propulsion x1, Utility x1 11815 | -2/Research | Spotted B-90 Cyclops 11841 | -2/Research | Lost 4 parts (1p2n1u) 11842 | -2/Research | Spotted B-90 Cyclops 11904 | -2/Research | Lost 3 parts (2n1u) 11954 | -2/Research | Lost 7 parts (2p2n2u1w) 11968 | -2/Research | Found Prototype Processor 11968 | -2/Research | Identified Exp. Core Analyzer 12396 | -2/Research | Build established: Hacker-Assassin 12401 | -2/Research | Identified exit to Access 12490 | -2/Research | First assault squad dispatched 12516 | -2/Research | Incoming assault squad redirected 12529 | -2/Research | Core integrity fell below 50% 12543 | -2/Research | Core integrity fell below 20% 12546 | -2/Research | Destroyed by X-87 Electro with Compact HERF Cannon Last Messages --------------- 12531_ Slug penetrates Wall. 12532_ Penetrated by Slug. 12532_ U-05 Engineer suffers critical hit (Destroy). 12533_ Slug penetrates Door. 12534_ Penetrated by Slug. 12535_ Slug penetrates U-05 Engineer. 12535_ U-05 Engineer builds a Door. 12536_ Slug penetrates Wall. 12536_ Adv. Sensor Array destroyed. 12536_ Slug penetrates Wall. 12537_ U-05 Engineer destroyed. 12537_ Penetrated by Slug. 12537_ Exp. Core Analyzer destroyed. 12539_ Dropped Med. Storage Unit. 12539_ Slug penetrates Wall. 12539_ Penetrated by Slug. 12540_ U-05 Engineer destroyed. 12541_ Penetrated by Slug. 12543_ Slug penetrates Wall. 12544_ Slug penetrates X-87 Electro. Map ----- +----------------------------------------------------+ | ??????????????# ##""" # # """ #??????? | | ??????????????# ## # ##############???? | | ?????????###### ## # # #???? | | ?????????# ## ########### # #???? | | ?????????# #?????????# # """ ""#???? | | ?????????# ## #?????????# # """ ""#???? | | ?????????## ###+########### + """ ""#???? | | ??????????# # # # # T#???? | | ??????????# # # # # ""#???? | | ??????????# + # # # """ ""#???? | | ??????????# # # # # """ ""#???? | | ?????????# # # + # """ #???? | | #?????????# # # # # #???? | | ??????????# # # """ # # #???? | | ########### # # """ # ##############???? | | + # """ !# ##???????????????? | | ############### T#???????????????? | | + # #???????????????? | | ######### # ##???????????????? | | ##+#??????????# """"""" # #????????????????? | | ??????????????# """"""" # ##############???? | | ??????????????# """"""" # # #???? | | ??????????????# # # #???? | | ??????????????# # # "" #???? | | ????????????###########+### # """ """ #???? | | ????????????# t @ # """ S" #???? | | ????????????# # """ """ #???? | | ????????????# + """ """ #???? | | ????????????# # """ #???? | | ????????????# ##########x # """ #???? | | ????????????# ??????????# xk# ###?? | | ????????????# ???????????# # # ##? | | ??????????? ?????????????# R # # #? | | ?????????? ??????????????# ########## #+# #? | | ???????? ???????????????#!= #???????# # # #? | | ??????? ??????????##?????#%| #???????# # # #? | | ??????##????????###########!= #???????# # # #? | | ????????????????# # *! #???????# ## # #? | | ????????????????# # !!%#???????#### ####? | | ????????????????# """" /%!!/#???????#### ##??? | | ????????????????# """" # ########## # #???? | | ????????????????# """" # # """ "## #???? | | ????????????????# """" # # """ ### #???? | | ????????????????# # # """ #?# #???? | | ????????????????# # # #?# #???? | | ????????????????##+######## # #?#!#???? | | ??????????????????????????# + #?# #???? | | ??????????????????????????# # #?#=#???? | | ??????????????????????????# # #?#!#???? | | ????????????????????????? # #?# #???? | +----------------------------------------------------+ Best States ------------- Heat Dissipation 59 Coolant Potential 65 Energy Generation 27 Energy Capacity 700 Matter Stores 300 Matter Capacity 300 Sight Range 22 Robot Scan Range 16 Terrain Scan Range 20 Terrain Scan Density 135 Power Amplification 20 Corruption Containment 8 Armor Coverage 550 Resistance: TH 20 Resistance: EM 25 Propulsion Shielding 33 Phase Shifting 5 Evasion (%) 77 Targeting Accuracy 5 Melee Accuracy 24 Core Analysis 8 Armor Integrity Analysis 30 Recoil Reduction 1 Force Boost 30 Offensive Hacking 60 Defensive Hacking 12 Item Schematics ----------------- Aerolev Unit | -7/Factory | Scanalyzed Imp. Trap Extractor | -7/Factory | Extracted Arc Projector | -7/Factory | Extracted Hvy. EM Pulse Gun | -7/Factory | Extracted Rocket Array | -7/Factory | Extracted Hvy. Armor Plating | -7/Factory | Extracted Weight Redist. System | -7/Factory | Extracted Gravmag System | -7/Factory | Scanalyzed Salvage Targeting Computer | -7/Factory | Extracted Imp. Medium Armor Plating | -7/Factory | Extracted Hpw. Tractor Beam | -7/Factory | Extracted Titanium Leg | -7/Factory | Extracted Imp. Gravmag System | -7/Factory | Hacked Greatsword | -7/Factory | Hacked Quantum Capacitor | -6/Factory | Hacked Nuclear Pulse Thruster | -6/Factory | Hacked Antigrav System | -6/Factory | Hacked Adv. Hacking Suite | -6/Factory | Hacked Combat Drone Bay | -6/Data Miner | Free Lgt. Regenerative Plating | -6/Data Miner | Free Exp. Cesium-ion Thruster | -6/Data Miner | Free Prc. Matter Filter | -6/Data Miner | Free Hvy. Gatling Laser | -6/Data Miner | Free Centrium Wheel | -6/Data Miner | Free Imp. Remote Shield | -6/Data Miner | Free Dispersion Rifle | -6/Data Miner | Free Imp. Recalibrator | -6/Data Miner | Free HERF Cannon | -6/Data Miner | Free Adv. Heavy Treads | -6/Data Miner | Free Impulse Thruster Array | -6/Data Miner | Free Adv. Signal Interpreter | -5/Factory | Scanalyzed Robot Schematics ------------------ M-22 Extractor | -6/Data Miner | Free R-10 Processor | -6/Data Miner | Free S-27 Virus | -6/Data Miner | Free B-60 Warrior | -6/Data Miner | Free M-30 Cleanser | -6/Data Miner | Free Fabricated ------------ Greatsword | x2 | -7/Factory H-55 Commando | x2 | -6/Factory | Preloaded Antigrav System | x2 | -6/Factory Adv. Hacking Suite | x1 | -6/Factory HERF Cannon | x2 | -5/Factory Quantum Capacitor | x2 | -5/Factory Exp. Cesium-ion Thruster | x1 | -5/Factory Alien Tech Used ----------------- Dimensional Node Initializer Achievements -------------- Dodgeball, But With Guns Hehehe Production Line Quick And Dirty root@ Challenges ------------ None Game ------ Seed LinkedSigixMicroactuators Manual? 0 Play Time 03:27:07 Cumulative 59.4 hours Start 2025.03.07 @ 20:10:58 End 2025.03.08 @ 02:53:24 Sessions 3 Manual Loads 0 Difficulty Rogue Special Mode None Game No. 64 Rogue 64 Adventurer 0 Explorer 0 Win Type - Total 0 Types 0/0/0/0/0/0/0/0/0 Lore% 34 Gallery% 44 Achievement% 37 Wizard Run 0 Options --------- Layout 0 ASCII 0 Keyboard 1 Movement Numpad Keybinds 0 Fullscreen 1 Font 18/SmallcapsGlow Map View 76x50 Zoom Use 0% Tactical HUD 1 Map Filters NONE Filters NONE Steam 1 RUN: bb8b26e1-0695-4d73-963e-8fcc204dde1b